Cogmind - Beta 15 @@@ ROGUE MODE // 2025.06.14 @ 22:33:31 Player: shockman27 Result: Destroyed by G-47 Trooper with Particle Gun Performance ------------- Evolutions (0) 0 Regions Visited (1) 200 Robots Destroyed (5) 25 Value Destroyed (71) 71 Prototype IDs (0) 0 Alien Tech Used (0) 0 Bonus (0) 0 TOTAL SCORE: 296 Bonus ------- None Cogmind --------- Core Integrity 0/250 Matter 205/300 Energy 100/100 System Corruption 0% Temperature Cool (9) Movement Core (1350) Ox26 Location -10/Materials Parts ------- > --- POWER (1) -------- (None) > --- PROPULSION (2) --- (None) > --- UTILITY (2) ------ Huge Storage Unit > --- WEAPON (2) ------- (None) > --- INVENTORY (25) --- Ion Engine Light Treads Aluminum Leg Aluminum Leg Aluminum Leg Medium Storage Unit Light Armor Plating Light Assault Rifle Mining Laser Peak State ------------ > --- POWER ------------ Ion Engine > --- PROPULSION ------- Light Treads Light Treads > --- UTILITY ---------- Small Storage Unit Seismic Detector > --- WEAPON ----------- Assault Rifle Assault Rifle > --- INVENTORY -------- Light Ion Engine Aluminum Leg Aluminum Leg Light Assault Rifle Mining Laser [Rating: 7] Favorites ----------- Power Ion Engine Engine Ion Engine Propulsion Light Treads Treads Light Treads Wheel Wheel Utility Seismic Detector Device Seismic Detector Storage Huge Storage Unit Weapon Assault Rifle Ballistic Gun Assault Rifle Build | -11 -10 ------- Run | Yrd Mat Slots Evolved . | . . Power . | . . Propulsion . | . . Utility . | . . Weapon . | . . Parts Attached 10 | 7 3 Power 1 | 1 . Engine 1 | 1 . Core . | . . Reactor . | . . Propulsion 3 | 2 1 Treads 2 | 2 . Leg . | . . Wheel 1 | . 1 Hover . | . . Flight . | . . Utility 4 | 2 2 Device 1 | 1 . Storage 3 | 1 2 Processor . | . . Hackware . | . . Protection . | . . Artifact . | . . Weapon 2 | 2 . Energy Gun . | . . Energy Cannon . | . . Ballistic Gun 2 | 2 . Ballistic Cannon . | . . Launcher . | . . Special Weapon . | . . Impact Weapon . | . . Slashing Weapon . | . . Piercing Weapon . | . . Special Melee Weapon . | . . Unidentified Prototypes . | . . Parts Lost 2 | . 2 Power 1 | . 1 Propulsion . | . . Utility 1 | . 1 Weapon . | . . Highest Loss Streak 2 | . 2 To Critical Strikes . | . . Average Backups 6 | 2 7 Power . | . 1 Propulsion 2 | 1 3 Utility 1 | . 1 Weapon 1 | 1 2 Tool/Special . | . . Unused Backups 8 | . 8 Power 2 | . 2 Propulsion 3 | . 3 Utility 1 | . 1 Weapon 2 | . 2 Tool/Special . | . . Average Slot Usage (%) 81 | . 81 Engine 13 | . 13 Treads 16 | . 16 Wheel 2 | . 2 Device 13 | . 13 Storage 14 | . 14 Ballistic Gun 18 | . 18 Peak Build Rating 7 | 7 7 Average Rating 5 | 5 5 On Entrance 3 | . 7 Naked Turns . | . . Heaviest Build 90 | 15 90 Greatest Support 40 | 40 40 Greatest Overweight (x) 28 | . 28 Average Overweight (x) 3 | . 5 Largest Inventory Capacity 25 | 8 25 Average Capacity 18 | 7 21 Most Carried 9 | 5 9 Average Carried 6 | 3 7 Final Capacity 25 | 8 25 Final Carried 9 | 5 9 Class Distribution -------------------- 100% | Mutant Dominant Class ---------------- Mutant | -10/Materials Resources | -11 -10 ----------- Run | Yrd Mat Matter Collected 325 | 270 55 Remotely . | . . Salvage Created 136 | 27 109 Parts 12 | 5 7 Haulers Intercepted 1 | . 1 Recyclers Shooed . | . . Parts Field Recycled . | . . Retrieved Matter . | . . Parts Self-Destructed . | . . Prevented . | . . Kills | -11 -10 ------- Run | Yrd Mat Combat Hostiles Destroyed 1 | . 1 Guns 1 | . 1 Classes Destroyed 4 | 1 3 Worker 1 | . 1 Tunneler 2 | 2 . Hauler 1 | . 1 Grunt 1 | . 1 Best Kill Streak 2 | 2 1 Combat Bots Only 1 | . 1 Max Kills in Single Turn 1 | 1 1 Gunslinging . | . . Exploded . | . . Melee . | . . Uniques/NPCs Destroyed . | . . Combat | -11 -10 -------- Run | Yrd Mat Hostile Shots Fired 24 | . 24 Missed 8 | . 8 Hits 16 | . 16 Projectile 16 | . 16 Damage Taken 417 | . 417 Core 254 | . 254 Absorbed by Shields . | . . Core Remaining (%) 100 | 100 . Volleys Fired 20 | 2 18 Largest 2 | 2 2 Hottest 40 | 40 40 Shots Fired 40 | 4 36 Gun 40 | 4 36 Cannon . | . . Launcher . | . . Special . | . . Kinetic 40 | 4 36 Thermal . | . . Explosive . | . . Electromagnetic . | . . Robot Hit Streak 8 | 3 8 Robot Miss Streak 3 | . 3 Penetration Max . | . . Secondary Targets . | . . Shots Hit Robots 21 | 3 18 Core Hits 8 | 3 5 Critical Kills . | . . Critical Parts Destroyed . | . . Critical Strikes . | . . Melee Attacks . | . . Impact . | . . Slashing . | . . Piercing . | . . Sneak Attacks . | . . Combat Hostiles . | . . Follow-up Attacks . | . . Damage Inflicted 256 | 45 211 Guns 256 | 45 211 Cannons . | . . Explosions . | . . Melee . | . . Ramming . | . . Kinetic 256 | 45 211 Thermal . | . . Explosive . | . . Electromagnetic . | . . Impact . | . . Slashing . | . . Piercing . | . . Highest Corruption . | . . Average Corruption . | . . Corruption Purged . | . . Corruption Blocked . | . . Overload Shots . | . . Overflow Damage . | . . Projectiles . | . . Explosions . | . . Melee . | . . Knockbacks . | . . Impact . | . . Kinetic . | . . Secondary . | . . Self-Inflicted Damage 174 | . 174 Shots 2 | . 2 Rammed . | . . Targets Rammed . | . . Kicked . | . . Crushed . | . . Highest Temperature . | . . Average Temperature . | . . Received Heat Transfer 135 | . 135 Siege Activations . | . . Martial Activations . | . . Shielding Activations . | . . Robots Disrupted . | . . Combat Hostiles . | . . Robots Corrupted . | . . Combat Hostiles . | . . Parts Fried . | . . Impact Corruptions . | . . Robots Melted . | . . Combat Hostiles . | . . Parts Melted . | . . Heat Transferred . | . . Parts Sabotaged . | . . Parts Stolen . | . . Parts Stripped . | . . Power Chain Reactions . | . . Alert | -11 -10 ------- Run | Yrd Mat Maximum Alert Level . | . . Low Security (%) 100 | 100 100 Level 1 . | . . Level 2 . | . . Level 3 . | . . Level 4 . | . . Level 5 . | . . High Security . | . . Max Security . | . . Peak Influence 70 | 10 70 Initial . | . . Average 8 | . 10 Influence Increases 129 | 10 119 Destroy 0b10 Robot/C 20 | . 20 Destroy 0b10 Robot/NC 20 | 10 10 Destroy Leader 2 | . 2 Disable Machine 30 | . 30 Destroy Structure 42 | . 42 Lose Combat Pursuer 15 | . 15 Influence Decreases 129 | 10 119 Time Decay 129 | 10 119 Squads Dispatched . | . . Investigation . | . . Extermination . | . . Reinforcement . | . . Assault . | . . Garrison . | . . Intercept . | . . Searches Triggered . | . . Construction Impeded . | . . Haulers Reinforced . | . . Active Scanning Responses . | . . Cargo Convoy Interrupts . | . . Stealth | -11 -10 --------- Run | Yrd Mat Distress Signals . | . . Communications Jammed . | . . Distress Signals . | . . Times Spotted 6 | . 6 Peak Tracking Total 2 | . 2 Tactical Retreats 1 | . 1 Traps | -11 -10 ------- Run | Yrd Mat Traps Triggered 1 | . 1 Indirectly . | . . Trap Hack Attempts . | . . Triggered . | . . Disarmed . | . . Reprogrammed . | . . Reused . | . . Traps Extracted . | . . Installed . | . . Triggered . | . . Machines | -11 -10 ---------- Run | Yrd Mat Machines Disabled 2 | . 2 Max in Single Turn 2 | . 2 Machines Repaired . | . . Machines Dismantled . | . . Machines Sabotaged . | . . Overloaded Fab Kills . | . . Hacking | -11 -10 --------- Run | Yrd Mat Machines Accessed 2 | . 2 Terminals 2 | . 2 Fabricators . | . . Repair Stations . | . . Recycling Units . | . . Scanalyzers . | . . Garrison Access . | . . Total Hacks 6 | . 6 Successful . | . . Failed 6 | . 6 Catastrophic 2 | . 2 Database Lockouts . | . . Manual 2 | . 2 Terminals 6 | . 6 Fabricators . | . . Repair Stations . | . . Recycling Units . | . . Scanalyzers . | . . Garrison Access . | . . Terminal Hacks . | . . Fabricator Hacks . | . . Repair Station Hacks . | . . Recycling Unit Hacks . | . . Scanalyzer . | . . Garrison Access Hacks . | . . Unauthorized Hacks . | . . Terminals . | . . Fabricators . | . . Repair Stations . | . . Recycling Units . | . . Scanalyzers . | . . Garrison Access . | . . Data Cores Recovered . | . . Used . | . . Hacking Detections 2 | . 2 Full Trace Events 2 | . 2 Feedback Events . | . . Feedback Blocked . | . . Robot Schematics Acquired . | . . Robots Built . | . . Authchips . | . . Time . | . . Total Robot Build Rating . | . . Part Schematics Acquired . | . . Parts Built . | . . Authchips . | . . Time . | . . Total Part Build Rating . | . . Parts Repaired . | . . Time . | . . Parts Recycled . | . . Recycled Matter . | . . Retrieved Matter . | . . Retrieved Components . | . . Parts Scanalyzed . | . . Part Schematics Acquired . | . . Parts Damaged . | . . Bothacking | -11 -10 ------------ Run | Yrd Mat Used RIF Installer . | . . Robots Hacked . | . . Non-combat . | . . Combat . | . . Robot Hacks Applied . | . . Relay Couplers Released . | . . Fabnet Peak Effective % . | . . Robots Rewired . | . . Allies Hacked . | . . Hacks Repelled . | . . Allies | -11 -10 -------- Run | Yrd Mat Total Allies . | . . Largest Group . | . . Highest-Rated Group . | . . Highest-Rated Ally . | . . Total Orders . | . . Ally Attacks . | . . Total Damage . | . . Kills . | . . Allies Corrupted . | . . Allies Melted . | . . Intel | -11 -10 ------- Run | Yrd Mat Active Infowar (turns) 655 | 55 600 Seismic 655 | 55 600 Robot Analysis Total . | . . Derelict Logs Recovered . | . . Drone Launches . | . . Drone Recoveries . | . . Exploration | -11 -10 ------------- Run | Yrd Mat Turns Passed 767 | 158 609 Spaces Moved 252 | 81 171 Core 32 | 17 15 Treads 169 | 64 105 Legs . | . . Wheels 51 | . 51 Hover . | . . Flight . | . . Fastest Speed 50 | 50 160 Average Speed 257 | 136 314 Slowest Speed 1450 | 160 1450 Overloaded Moves . | . . Propulsion Burnouts . | . . Robots Hopped . | . . Potential Cave-ins . | . . Cave-ins Triggered . | . . Exploration Rate (%) 21 | 6 36 Regions Visited 1 Branch Regions . Pre-discovered Areas . | . . Known Exits Taken . | . . Unknown Exits Taken 1 | 1 . Scrap Searched . | . . Spaces Dug . | . . Terrain Destroyed 43 | . 43 Melee . | . . Projectile . | . . AOE 43 | . 43 Terrain Rammed . | . . Walls Destroyed . | . . Machines Disabled . | . . Actions | -11 -10 --------- Run | Yrd Mat Total 333 | 121 212 Wait 39 | 25 14 Move 251 | 80 171 Hop . | . . Pick Up 8 | 5 3 Fast Attach 7 | 7 . Attach 1 | 1 . Detach 2 | 1 1 Swap 3 | . 3 Drop 2 | . 2 Fire 20 | 2 18 Melee . | . . Ram . | . . Kick . | . . Crush . | . . Escape Stasis . | . . Rewire . | . . Trap . | . . Miscellaneous . | . . Route ------- -11/Scrapyard -10/Materials (discovered 1 exit: [*Min]) History --------- Turn | Location | Event 25 | -11/Scrapyard | Discovered new exit (range 16) 159 | -11/Scrapyard | Entered Materials 309 | -10/Materials | Build established: Mutant 327 | -10/Materials | Discovered new exit (range 10) 474 | -10/Materials | Core integrity fell below 50% 758 | -10/Materials | Core integrity fell below 20% 768 | -10/Materials | Destroyed by G-47 Trooper with Particle Gun Last Messages --------------- 00518_ U-05 Engineer lays Concrete. 00520_ U-05 Engineer builds a Wall. 00523_ The unstable cave ceiling collapses. 00523_ U-05 Engineer builds a Wall. 00536_ U-05 Engineer lays Concrete. 00537_ U-05 Engineer builds a Wall. 00555_ Triggered Blade Trap. 00555_ Massive razor-sharp blades shoot up from within the floor. 00555_ Wheel severed. 00555_ Assault Rifle severed. 00566_ U-05 Engineer lays Concrete. 00623_ K-01 Serf collects debris. 00715_ R-06 Scavenger inserts Heat Sink into recycling unit. 00718_ R-06 Scavenger inserts Assault Rifle into recycling unit. 00721_ R-06 Scavenger inserts Wheel into recycling unit. 00721_ K-01 Serf cleans the Recycling Unit. 00724_ R-06 Scavenger inserts Sml. Storage Unit into recycling unit. 00725_ Recycling unit begins recycling process. 00755_ Ion Engine destroyed. 00759_ Seismic Detector destroyed. Map ----- +----------------------------------------------------+ | ?????????????????????????????????????????????????? | | ?????????????????????????????????????????????????? | | ????????????????????????????????????????????? ? | | ???????????????????????????????????????????? ? | | ????????????????????????????????????????????# ? | | ????????????????????????????????????????????# #? | | ????????????????????????????????????????????# #? | | ????????????????????????????????????????????# ## | | ????????????????????????????????????????????# | | ????????????????????????????????????????????# | | ??????????????????????? ? ??????????????????# | | ?????????????????????? ??????????????????+ | | ?????????????????????? T ??????????????????# | | ?????????????????????? ??#######?????????# | | ?????????????????????? ??# ########### ## | | ??????????????????????# ??# !!= # | | ??????????????????????# ??# ! !%! # | | ??????????????????????# #?# !! | | ??????????????????????# #?# ############ ## | | ??????????????????????# #?## ##???########+## | | ??????????????????????# #??# #?? ## | | ??????????????????????# #??# [# [ ## | | ??????????????????????# #??# [=+ ### | | ??????????????????????# #??# # #?# | | ??????????????????????# #??# #?? ! ### | | ??????????????????????# @#### #???? + | | ??????????????????????# #??????########## | | ??????????????????????# k #???????????????# | | ??????????????????????# #???????????????# | | ??????????????????????# ########???????????????# | | ??????????????????????# #??????????????????????# | | ??????????????????????# #??????????????????????# | | ??????????????#"###??## +??????????###+######### | | ?????????????? #??????????# | | ?????????????? g #??????????# | | ??????????????" """ #??????????# | | ??????????????" "Y" #??????????# ####### | | ????????????""" ???????????# #?????? | | ???????????? ???????????## ######## | | ????????????? ! ! o ????######### # ! * # | | ????????????????# #####!"T" # # # | | ????????????????# / + + """ # | | ??????????? + ##### # # """ # | | ??????????? ########+#????######### # """ # | | ?????????????????????? ?????????????# # # | | ????????????????????? ??????????????############ | | ???????????????????? ??????????????????????????? | | ???????????????????"" ???????????????????????????? | | ??????????????????""" ???????????????????????????? | | ??????????????????"""????????????????????????????? | +----------------------------------------------------+ Best States ------------- Heat Dissipation 25 Energy Generation 10 Energy Capacity 250 Matter Stores 294 Matter Capacity 300 Sight Range 16 Terrain Scan Density 10 Evasion (%) 50 Recoil Reduction 2 Item Schematics ----------------- None Robot Schematics ------------------ None Fabricated ------------ Nothing Repaired ---------- Nothing Alien Tech Used ----------------- None Achievements -------------- None Challenges ------------ None Game ------ Seed TacticalFluxProtection Manual? 0 Play Time 00:14:13 Cumulative 127.7 hours Start 2025.06.14 @ 15:31:45 End 2025.06.14 @ 22:33:31 Sessions 6 Manual Loads 0 Difficulty Rogue Special Mode None Game No. 70 Rogue 66 Adventurer 4 Explorer 0 Win Type - Total 2 Types 1/0/0/1/0/0/0/0/0/0 Lore% 59 Gallery% 52 Achievement% 46 Wizard Run 0 Options --------- Layout 0 ASCII 0 Keyboard 1 Movement Vi Keybinds 0 Fullscreen 1 Font 24/Crisp Map View 76x50 Zoom Use 6% Tactical HUD 1 Map Filters NONE Filters NONE Steam 1 RUN: 2583d278-1cab-4b6b-973e-030bb72d53ed